bitfinex/quotes_SOLUSD_20250830
["timestamp","ask_amount","ask_price","bid_price","bid_amount"]
[1756534244658,26.0,206.58,206.57,3.49]
[1756534245084,30.56460606,206.58,206.57,0.03]
[1756534245273,31.26460606,206.58,206.57,39.53]
[1756534248766,31.26460606,206.58,206.57,0.03]
[1756534248987,0.7,206.62,206.57,0.71]
[1756534249178,4.56460606,206.58,206.57,4.87090261]
[1756534249673,4.56460606,206.58,206.57,0.03]
[1756534252196,5.26460606,206.58,206.57,0.03]
[1756534252487,5.26460606,206.58,206.57,39.45]
[1756534252790,31.26460606,206.58,206.57,39.43]
[1756534253882,26.0,206.58,206.57,39.43]
[1756534254091,30.56460606,206.58,206.57,39.43]
[1756534255085,31.26460606,206.58,206.57,39.43]
[1756534257389,26.0,206.58,206.57,40.11]
[1756534257593,4.56460606,206.58,206.57,44.950974]
[1756534257776,4.56460606,206.59,206.57,44.950974]
[1756534257981,4.56460606,206.59,206.58,0.68]
[1756534259491,131.6,206.6,206.58,0.68]
[1756534259693,4.56460606,206.59,206.58,0.68]
[1756534259890,4.56460606,206.59,206.58,4.84073966]
[1756534260508,4.56460606,206.59,206.58,5.52073966]
[1756534260680,131.6,206.6,206.58,5.52073966]
[1756534260877,4.56460606,206.59,206.58,0.68]
[1756534261099,5.24460606,206.59,206.58,39.32]
[1756534261813,26.0,206.58,206.57,0.03]
[1756534261988,30.56460606,206.58,206.57,0.03]
[1756534262184,31.24460606,206.58,206.57,0.03]
[1756534262581,31.24460606,206.58,206.54,0.03]
[1756534262806,30.56460606,206.55,206.54,0.03]
[1756534263195,31.24460606,206.55,206.54,0.03]
[1756534264905,36.0860488,206.55,206.54,0.03]
[1756534265679,31.52144274,206.55,206.54,0.03]
[1756534265890,36.0860488,206.55,206.54,0.03]
[1756534266383,5.24460606,206.55,206.54,0.03]
[1756534267405,10.0860488,206.55,206.54,0.03]
[1756534269018,4.56460606,206.55,206.54,0.03]
[1756534269305,0.06,206.59,206.54,0.71]
[1756534269487,4.62460606,206.59,206.54,0.71]
[1756534270006,26.0,206.58,206.54,0.71]
[1756534270200,26.0,206.58,206.55,0.68]
[1756534270387,26.0,206.58,206.56,0.68]
[1756534271298,30.56460606,206.58,206.56,0.68]
[1756534272215,0.06,206.59,206.57,0.68]
[1756534272507,26.0,206.58,206.57,5.24460606]
[1756534273211,26.0,206.58,206.57,0.68]
[1756534273404,26.0,206.58,206.55,5.52142293]
[1756534273605,26.0,206.58,206.56,0.68]
[1756534274119,26.0,206.58,206.55,0.68]
[1756534274120,30.56460606,206.57,206.55,0.68]
[1756534274303,4.56460606,206.57,206.54,0.03]
[1756534274490,5.24460606,206.57,206.54,0.03]
[1756534274690,4.56460606,206.56,206.54,0.03]
[1756534275712,30.56460606,206.55,206.54,0.03]
[1756534277306,30.56460606,206.55,206.54,0.71]
[1756534277307,26.0,206.55,206.54,0.71]
[1756534278014,30.56460606,206.55,206.54,0.71]
[1756534278192,26.0,206.55,206.54,0.71]
[1756534278605,26.0,206.55,206.54,0.03]
[1756534281714,167.6860488,206.55,206.54,0.03]
[1756534281915,170.9420778,206.55,206.54,0.03]
[1756534287628,174.77001197,206.55,206.54,0.03]
[1756534288308,170.9420778,206.55,206.54,0.03]
[1756534288714,209.9220778,206.55,206.54,0.03]
[1756534289705,95.91149521,206.55,206.54,0.03]
[1756534290021,13.59559401,206.54,206.52,0.03]
[1756534290207,178.36063506,206.53,206.52,0.03]
[1756534290400,183.60524112,206.53,206.52,0.03]
[1756534290620,188.4471527,206.53,206.52,0.03]
[1756534291722,13.73775558,206.52,206.51,0.03]
[1756534291918,26.1229967,206.52,206.51,0.03]
[1756534292117,26.8029967,206.52,206.51,0.03]
[1756534292625,65.7229967,206.52,206.51,0.03]
[1756534292814,70.56514273,206.52,206.51,0.03]
[1756534294511,26.0,206.5,206.49,0.03]
[1756534294713,77.30524112,206.5,206.49,0.03]
[1756534295018,82.82785613,206.5,206.49,0.03]
[1756534298319,82.14785613,206.5,206.49,0.03]
[1756534299037,82.82785613,206.5,206.49,0.03]
[1756534304140,0.14216157,206.48,206.47,0.03]
[1756534304356,39.73775558,206.46,206.45,0.03]
[1756534304653,86.97839064,206.46,206.45,0.03]
[1756534306146,91.82194387,206.46,206.45,0.03]
[1756534306348,91.14194387,206.46,206.45,0.03]
[1756534306549,72.81958223,206.46,206.45,0.72]
[1756534306742,38.66418829,206.46,206.45,0.72]
[1756534307035,43.28460606,206.46,206.45,0.72]
[1756534307242,4.56460606,206.46,206.45,0.72]
[1756534307542,9.40815929,206.46,206.45,0.72]
[1756534312659,12.65555065,206.46,206.45,0.03]
[1756534314054,13.33555065,206.46,206.45,0.03]
[1756534314875,27.07330623,206.46,206.45,0.03]
[1756534315243,26.0,206.43,206.41,0.2]
[1756534315554,43.16460606,206.42,206.41,0.2]
[1756534316051,48.00909787,206.42,206.41,0.2]
[1756534318169,51.2565302,206.42,206.41,0.2]
[1756534318978,56.50113626,206.42,206.41,0.2]
[1756534319185,51.2565302,206.42,206.41,0.2]
[1756534319674,12.6565302,206.42,206.41,0.89]
[1756534319974,9.40909787,206.42,206.41,0.89]
[1756534321081,12.65841046,206.42,206.41,0.89]
[1756534321781,12.65841046,206.42,206.41,0.2]
[1756534322599,4.56460606,206.42,206.41,0.92]
[1756534322981,30.56460606,206.42,206.41,0.92]
[1756534323783,4.56460606,206.43,206.41,0.92]
[1756534324077,4.56460606,206.42,206.41,0.2]
[1756534324459,4.56460606,206.42,206.41,0.92]
[1756534325689,9.40909787,206.42,206.41,0.92]
[1756534326052,9.40909787,206.42,206.41,0.2]
[1756534326271,48.60909787,206.42,206.41,0.2]
[1756534326465,51.86341261,206.42,206.41,0.2]
[1756534326668,12.66341261,206.42,206.41,0.92]
[1756534327392,13.38341261,206.42,206.41,0.2]
[1756534327555,51.84341261,206.42,206.41,0.2]
[1756534329976,51.12341261,206.42,206.41,0.2]
[1756534330188,51.84341261,206.42,206.41,0.2]
[1756534331056,51.12341261,206.42,206.41,0.2]
[1756534332696,51.10341261,206.42,206.41,0.2]
[1756534335084,51.82341261,206.42,206.41,0.2]
[1756534335463,65.56116819,206.42,206.41,0.2]
[1756534335769,74.19319369,206.42,206.41,0.2]
[1756534336164,69.62858763,206.42,206.41,0.2]
[1756534338188,95.62858763,206.42,206.41,0.2]
[1756534339092,94.90858763,206.42,206.41,0.2]
[1756534339792,38.66341261,206.42,206.41,0.92]
[1756534341579,38.66341261,206.42,206.41,0.2]
[1756534342499,7.8189208,206.42,206.41,0.92]
[1756534343273,4.56460606,206.42,206.41,0.92]
[1756534343507,7.8260658,206.42,206.41,0.92]
[1756534345072,4.56460606,206.42,206.41,0.92]
[1756534346173,30.56460606,206.43,206.41,0.92]
[1756534346687,30.56460606,206.43,206.42,0.72]
[1756534346883,33.82728106,206.43,206.42,0.72]
[1756534349171,30.56460606,206.43,206.42,0.72]
[1756534351711,30.56460606,206.43,206.41,0.2]
[1756534351900,136.83460606,206.42,206.41,0.2]
[1756534352101,28.38145951,206.42,206.41,0.2]
[1756534352301,30.32400851,206.42,206.41,0.2]
[1756534354922,25.75940245,206.42,206.41,0.2]
[1756534355814,30.32400851,206.42,206.41,0.2]
[1756534356492,25.75940245,206.42,206.41,0.2]
[1756534358619,30.32400851,206.42,206.41,0.2]
[1756534361213,13.73775558,206.41,206.4,0.03]
[1756534361433,39.73775558,206.39,206.38,0.03]
[1756534361599,82.62236164,206.39,206.38,0.03]
[1756534361788,18.58412564,206.34,206.33,0.03]
[1756534362093,26.0,206.32,206.31,0.03]
[1756534362295,68.88460606,206.32,206.31,0.03]
[1756534363102,78.58056892,206.32,206.31,0.03]
[1756534363307,14.26056892,206.32,206.31,0.03]
[1756534363698,19.49517498,206.32,206.31,0.03]
[1756534365192,19.49517498,206.32,206.24,0.69]
[1756534365193,26.0,206.29,206.24,0.69]
[1756534365425,30.56460606,206.25,206.22,0.69]
[1756534365734,26.0,206.25,206.24,0.69]
[1756534366815,30.56460606,206.25,206.24,0.69]
[1756534367592,35.4130909,206.25,206.24,0.69]
[1756534367999,30.56460606,206.25,206.24,0.69]
[1756534369002,35.4130909,206.25,206.24,0.69]
[1756534369605,35.4130909,206.25,206.2,0.2]
[1756534369947,4.56460606,206.22,206.21,0.69]
[1756534370120,4.56460606,206.22,206.2,0.2]
[1756534370719,4.56460606,206.22,206.21,0.69]
[1756534371640,162.44848484,206.25,206.21,0.69]
[1756534371827,4.56460606,206.22,206.21,0.72]
[1756534372134,26.0,206.22,206.21,0.03]
[1756534372434,30.56460606,206.22,206.21,0.03]
[1756534372734,30.56460606,206.22,206.21,0.72]
[1756534373340,4.56460606,206.22,206.21,0.72]
[1756534373722,30.56460606,206.22,206.21,0.72]
[1756534373921,32.50847706,206.22,206.21,0.72]
[1756534374229,37.35766724,206.22,206.21,0.03]
[1756534375234,32.50847706,206.22,206.21,0.03]
[1756534375634,37.35766724,206.22,206.21,0.03]
[1756534380231,37.35766724,206.22,206.21,0.72]
[1756534380232,1.943871,206.22,206.21,0.72]
[1756534380421,26.0,206.22,206.21,0.72]
[1756534380627,6.50857106,206.23,206.21,0.72]
[1756534380827,6.50857106,206.23,206.22,0.69]
[1756534381022,30.56460606,206.23,206.22,0.69]
[1756534381233,14.30559401,206.27,206.22,0.69]
[1756534381234,4.84822439,206.27,206.22,0.69]
[1756534381542,4.56460606,206.24,206.21,0.03]
[1756534381732,4.56460606,206.23,206.21,0.75]
[1756534381936,30.56460606,206.23,206.22,0.72]
[1756534382528,26.0,206.22,206.21,0.03]
[1756534382737,30.56460606,206.22,206.21,0.75]
[1756534383239,30.56460606,206.22,206.21,0.03]
[1756534383737,30.56460606,206.22,206.21,0.75]
[1756534383949,26.0,206.22,206.21,0.75]
[1756534384812,4.56460606,206.24,206.21,0.75]
[1756534385012,26.0,206.23,206.21,0.75]
[1756534385742,30.56460606,206.23,206.21,0.75]
[1756534386041,30.56460606,206.23,206.22,0.72]
[1756534386215,162.16460606,206.23,206.22,0.72]
[1756534386939,162.16460606,206.23,206.21,0.03]
[1756534387113,4.56460606,206.22,206.21,0.03]
[1756534388543,4.56460606,206.22,206.21,0.75]
[1756534389420,4.56460606,206.22,206.21,0.03]
[1756534391317,9.41379624,206.22,206.21,0.03]
[1756534391737,12.06795024,206.22,206.21,0.03]
[1756534393050,11.35795024,206.22,206.21,0.03]
[1756534395250,12.06795024,206.22,206.21,0.03]
[1756534395851,11.35795024,206.22,206.21,0.03]
[1756534396550,6.50876006,206.22,206.21,0.03]
[1756534397137,11.35795024,206.22,206.21,0.03]
[1756534398149,38.06795024,206.22,206.21,0.03]
[1756534400752,33.21876006,206.22,206.21,0.03]
[1756534400935,32.50876006,206.22,206.21,0.03]
[1756534402458,4.56460606,206.22,206.21,0.75]
[1756534402844,4.56460606,206.23,206.21,0.75]
[1756534404463,4.879838,206.26,206.21,0.75]
[1756534404631,4.56460606,206.23,206.21,0.75]
[1756534405862,4.56460606,206.23,206.21,5.59940366]
[1756534406062,4.56460606,206.23,206.22,0.72]
[1756534407061,131.6,206.25,206.22,0.72]
[1756534407250,131.6,206.25,206.23,0.72]
[1756534407474,7.83388802,206.24,206.23,0.72]
[1756534408166,7.83388802,206.24,206.21,4.87940366]
[1756534408348,4.56460606,206.24,206.22,0.72]
[1756534408855,131.6,206.25,206.23,0.72]
[1756534409048,4.56460606,206.24,206.23,0.72]
[1756534409255,7.83592556,206.24,206.23,0.72]
[1756534411874,26.0,206.22,206.21,0.03]
[1756534412050,33.83592556,206.22,206.21,0.03]
[1756534412256,34.48592556,206.22,206.21,0.03]
[1756534414165,31.21460606,206.22,206.21,0.03]
[1756534414371,34.48691792,206.22,206.21,0.03]
[1756534418649,39.3361081,206.22,206.21,0.03]
[1756534421683,39.33548781,206.22,206.21,0.03]
[1756534429284,29.27169157,206.22,206.21,0.72]
[1756534429581,33.83629763,206.22,206.21,0.72]
[1756534430475,33.83629763,206.22,206.21,0.03]
[1756534431376,3.27169157,206.22,206.21,0.72]
[1756534431581,4.56460606,206.22,206.21,0.72]
[1756534431961,162.44834345,206.26,206.21,0.72]
[1756534432161,4.56460606,206.22,206.21,0.72]
[1756534432362,4.56460606,206.22,206.21,0.03]
[1756534433073,4.56460606,206.22,206.21,0.72]
[1756534435589,4.56460606,206.22,206.21,0.03]
[1756534436686,10.06379624,206.22,206.21,0.03]
[1756534436902,13.33504497,206.22,206.21,0.03]
[1756534437983,17.89965103,206.22,206.21,0.03]
[1756534438791,21.53478765,206.22,206.21,0.03]
[1756534439281,16.97018159,206.22,206.21,0.03]
[1756534440185,13.73775558,206.21,206.2,0.2]
[1756534440376,68.0135305,206.21,206.2,0.2]
[1756534440573,68.6635305,206.21,206.2,0.2]
[1756534440967,70.6081575,206.21,206.2,0.2]
[1756534441471,0.14216157,206.2,206.19,0.03]
[1756534441779,13.73775558,206.18,206.16,0.03]
[1756534441980,68.23909827,206.17,206.16,0.03]
[1756534442568,64.14892444,206.17,206.16,0.03]
[1756534443282,49.71116886,206.17,206.16,0.03]
[1756534443603,4.09017383,206.24,206.16,0.72]
[1756534443771,4.56460606,206.2,206.16,0.72]
[1756534444407,4.56460606,206.19,206.16,0.72]
[1756534445030,4.56460606,206.2,206.16,0.72]
[1756534445372,4.56460606,206.2,206.17,4.8503662]
[1756534445571,4.56460606,206.2,206.18,0.69]
[1756534447202,26.0,206.22,206.18,0.69]
[1756534447492,4.56460606,206.19,206.16,0.03]
[1756534447885,4.56460606,206.19,206.17,0.69]
[1756534448076,4.56460606,206.19,206.18,0.69]
[1756534449383,4.56460606,206.19,206.16,0.72]
[1756534449587,4.56460606,206.18,206.17,0.69]
[1756534449982,4.56460606,206.18,206.16,0.03]
[1756534450504,4.56460606,206.18,206.17,0.69]
[1756534450806,26.7,206.22,206.17,0.69]
[1756534451105,4.56460606,206.18,206.16,4.88057148]
[1756534451476,4.56460606,206.18,206.17,0.69]
[1756534451878,4.56460606,206.18,206.16,0.03]
[1756534452074,4.56460606,206.18,206.16,0.72]
[1756534452280,4.56460606,206.18,206.17,0.69]
[1756534455990,4.56460606,206.2,206.17,5.54025549]
[1756534456297,4.56460606,206.2,206.18,0.69]
[1756534456506,131.6,206.21,206.18,0.69]
[1756534456802,3.26710387,206.2,206.19,0.69]
[1756534456986,136.16460606,206.21,206.17,4.85025549]
[1756534457195,4.56460606,206.2,206.17,4.85025549]
[1756534457705,4.56460606,206.2,206.18,5.56994474]
[1756534457903,4.56460606,206.2,206.19,0.69]
[1756534458198,136.22460606,206.21,206.19,0.69]
[1756534458404,131.66,206.21,206.2,0.69]
[1756534458608,139.49154898,206.21,206.18,5.56994474]
[1756534458800,136.22460606,206.21,206.19,0.69]
[1756534460504,136.22460606,206.21,206.2,0.69]
[1756534460505,131.66,206.21,206.2,0.69]
[1756534462303,136.22460606,206.21,206.2,0.69]
[1756534463089,136.22460606,206.21,206.19,4.84987147]
[1756534463285,4.56460606,206.2,206.18,0.03]
[1756534463490,4.56460606,206.19,206.18,0.03]
[1756534464703,4.56460606,206.19,206.18,0.72]
[1756534465994,131.66,206.21,206.18,0.72]
[1756534466413,4.56460606,206.19,206.18,0.72]
[1756534466812,131.66,206.21,206.18,0.72]
[1756534467011,4.56460606,206.19,206.18,0.72]
[1756534467208,131.66,206.21,206.18,0.72]
[1756534467606,131.66,206.21,206.18,5.57013095]
[1756534467607,4.56460606,206.2,206.18,5.57013095]
[1756534469816,4.56460606,206.2,206.18,0.03]
[1756534470115,4.56460606,206.2,206.18,0.72]
[1756534470816,4.56460606,206.2,206.18,0.03]
[1756534473116,5.22460606,206.19,206.18,0.03]
[1756534473314,7.83196193,206.19,206.18,0.03]
[1756534473507,8.49196193,206.19,206.18,0.03]
[1756534476320,13.34185765,206.19,206.18,0.03]
[1756534476926,51.50185765,206.19,206.18,0.03]
[1756534477524,65.23961323,206.19,206.18,0.03]
[1756534477711,69.32978706,206.19,206.18,0.03]
[1756534478241,26.0,206.17,206.16,0.03]
[1756534478448,71.99196193,206.17,206.16,0.03]
[1756534478731,72.65196193,206.17,206.16,0.03]
[1756534479415,77.50232813,206.17,206.16,0.03]
[1756534484006,79.44714413,206.17,206.16,0.03]
[1756534484330,13.73775558,206.16,206.15,0.03]
[1756534484519,21.56971751,206.16,206.15,0.03]
[1756534484715,22.22971751,206.16,206.15,0.03]
[1756534485236,153.82971751,206.16,206.15,0.03]
[1756534485437,26.0,206.14,206.13,0.03]
[1756534485643,71.97196193,206.14,206.13,0.03]
[1756534485841,69.36460606,206.14,206.13,0.03]
[1756534486014,72.62824237,206.14,206.13,0.03]
[1756534486211,77.47931445,206.14,206.13,0.03]
[1756534486409,91.21707003,206.14,206.13,0.03]
[1756534487437,93.16226503,206.14,206.13,0.03]
[1756534488140,26.0,206.11,206.1,0.15]
[1756534488346,0.14216157,206.09,205.95,13.59559401]
[1756534488546,26.0,206.08,206.05,0.71]
[1756534488833,26.0,206.06,206.05,0.71]
[1756534489534,26.0,206.07,206.05,0.71]
[1756534489837,38.14,206.11,206.05,0.71]
[1756534489838,4.56460606,206.08,206.05,0.71]
[1756534490223,4.56460606,206.08,206.05,5.56313324]
[1756534490546,26.0,206.09,206.06,0.71]
[1756534490717,4.56460606,206.08,206.06,0.71]
[1756534491309,4.56460606,206.07,206.06,0.71]
[1756534491933,26.0,206.09,206.06,0.71]
[1756534492113,26.0,206.09,206.06,5.56291919]
[1756534492321,4.56460606,206.08,206.07,0.71]
[1756534493646,4.56460606,206.08,206.05,4.85317758]
[1756534493647,26.0,206.07,206.06,0.71]
[1756534493862,30.56460606,206.07,206.06,0.71]
[1756534496060,30.56460606,206.07,206.04,0.71]
[1756534496234,26.0,206.07,206.06,0.03]
[1756534496439,30.56460606,206.07,206.06,0.74]
[1756534497535,26.0,206.07,206.06,0.74]
[1756534497734,30.56460606,206.07,206.06,0.74]
[1756534499139,4.56460606,206.07,206.06,0.74]
[1756534499341,0.06,206.14,206.06,5.59295544]
[1756534499548,4.56460606,206.12,206.07,5.27460606]
[1756534499735,30.56460606,206.12,206.08,0.71]
[1756534500363,4.56460606,206.12,206.08,0.71]
[1756534500546,30.56460606,206.12,206.08,0.71]
[1756534500743,4.56460606,206.1,206.08,0.71]
[1756534501666,26.0,206.12,206.08,0.71]
[1756534501958,4.56460606,206.1,206.08,0.71]
[1756534502157,4.56460606,206.1,206.08,5.56247935]
[1756534502356,0.06,206.14,206.09,0.7]
[1756534502544,4.56460606,206.12,206.09,0.7]
[1756534503175,4.56460606,206.12,206.09,5.55221801]
[1756534503345,4.56460606,206.12,206.1,0.7]
[1756534504641,0.06,206.14,206.1,0.7]
[1756534504946,0.06,206.14,206.11,0.7]
[1756534505138,0.06,206.14,206.12,4.56460606]
[1756534505335,0.06,206.14,206.11,0.7]
[1756534505336,0.06,206.14,206.13,0.7]
[1756534505762,5.31460606,206.14,206.09,0.7]
[1756534506068,4.56460606,206.11,206.1,0.7]
[1756534507364,0.06,206.14,206.1,0.7]
[1756534507581,4.56460606,206.12,206.07,4.85271994]
[1756534507742,0.06,206.14,206.1,4.56460606]
[1756534508062,0.06,206.14,206.13,4.56460606]
[1756534508439,0.06,206.14,206.13,5.26460606]
[1756534509278,0.06,206.14,206.13,10.11591348]
[1756534509465,0.06,206.14,206.13,4.56460606]
[1756534511375,0.06,206.14,206.13,9.41591348]
[1756534511582,0.06,206.14,206.13,9.68051954]
[1756534512560,1e-08,206.14,206.13,23.41827512]
[1756534512774,1e-08,206.17,206.14,13.73775558]
[1756534513077,1e-08,206.17,206.16,18.30236164]
[1756534513270,1e-08,206.17,206.16,56.40236164]
[1756534513447,1e-08,206.17,206.16,61.95296311]
[1756534516779,1e-08,206.17,206.16,38.1]
[1756534516982,1e-08,206.17,206.16,38.8]
[1756534517160,1e-08,206.17,206.16,43.36460606]
[1756534518382,1e-08,206.17,206.16,61.95296311]
[1756534519111,1e-08,206.21,206.19,0.14216157]
[1756534519281,1e-08,206.21,206.2,87.6469677]
[1756534519678,1e-08,206.21,206.2,92.43494926]
[1756534520460,1e-08,206.21,206.2,99.22753678]
[1756534520657,1e-08,206.23,206.22,13.73775558]
[1756534520872,1e-08,206.23,206.22,38.08]
[1756534521897,0.69000001,206.23,206.22,38.08]
[1756534522196,1e-08,206.23,206.22,38.08]
[1756534522361,1e-08,206.23,206.22,42.92919018]
[1756534522987,1e-08,206.23,206.22,47.49379624]
[1756534523282,1e-08,206.23,206.22,48.19379624]
[1756534523866,1e-08,206.23,206.22,47.49379624]
[1756534525585,1e-08,206.23,206.22,42.62460606]
[1756534526896,0.69000001,206.23,206.19,4.84966209]
[1756534527076,0.69,206.22,206.2,38.06]
[1756534528780,0.69,206.22,206.19,9.41426815]
[1756534529110,0.69,206.22,206.2,38.06]
[1756534529310,1e-08,206.23,206.18,4.56460606]
[1756534529526,0.69,206.21,206.19,38.06]
[1756534529808,0.69,206.2,206.19,38.06]
[1756534530004,0.69,206.2,206.15,19.1462031]
[1756534530203,0.69,206.2,206.16,43.32460606]
[1756534530579,0.69,206.2,206.17,4.8503662]
[1756534531906,0.67,206.19,206.14,4.85107208]
[1756534532085,1e-08,206.23,206.12,0.66]
[1756534532086,4.56460606,206.17,206.12,5.5113146]
[1756534532285,5.23460606,206.16,206.13,38.06]
[1756534532479,0.67,206.15,206.13,38.06]
[1756534533091,5.23460606,206.15,206.14,38.06]
[1756534533704,0.67,206.15,206.14,38.06]
[1756534534909,5.23460606,206.15,206.14,38.06]
[1756534535505,5.23460606,206.15,206.13,0.03]
[1756534535687,4.85039139,206.17,206.13,0.03]
[1756534535688,30.85039139,206.17,206.14,38.06]
[1756534535876,4.56460606,206.15,206.13,0.03]
[1756534536076,4.56460606,206.14,206.13,0.03]
[1756534536303,5.23460606,206.14,206.13,0.03]
[1756534536801,0.67,206.14,206.13,0.03]
[1756534537302,5.23460606,206.14,206.13,38.09]
[1756534537494,5.23460606,206.14,206.13,0.03]
[1756534537693,5.23460606,206.14,206.13,38.09]
[1756534538499,10.08567814,206.14,206.13,0.03]
[1756534539907,5.23460606,206.14,206.13,0.03]
[1756534541301,31.23460606,206.14,206.13,0.03]
[1756534544196,36.08567814,206.14,206.13,0.03]
[1756534547895,49.82343372,206.14,206.13,0.03]
[1756534548119,49.82343372,206.14,206.11,0.03]
[1756534548120,4.56460606,206.12,206.11,0.03]
[1756534548323,9.12921212,206.12,206.11,0.03]
[1756534548694,9.79921212,206.12,206.11,0.03]
[1756534548911,10.08614885,206.12,206.11,0.03]
[1756534549622,14.65075491,206.12,206.11,0.03]
[1756534550317,10.08614885,206.12,206.11,0.03]
[1756534551023,28.38851049,206.12,206.11,0.03]
[1756534552296,26.0,206.09,206.08,0.03]
[1756534552513,4.56460606,206.09,206.08,0.03]
[1756534552824,5.23460606,206.09,206.08,0.03]
[1756534553019,10.08685507,206.09,206.08,0.03]
[1756534553436,36.08685507,206.09,206.08,0.03]
[1756534553618,10.08685507,206.09,206.08,0.03]
[1756534553920,36.08685507,206.09,206.08,0.03]
[1756534554122,10.08685507,206.09,206.08,0.03]
[1756534557421,23.82461065,206.09,206.08,0.03]
[1756534558303,4.85271994,206.07,206.06,0.03]
[1756534558502,9.417326,206.07,206.06,0.03]
[1756534558712,10.087326,206.07,206.06,0.03]
[1756534559229,23.82508158,206.07,206.06,0.03]
[1756534559626,26.0,206.06,206.05,0.03]
[1756534559835,68.60460606,206.06,206.05,0.03]
[1756534560137,4.56460606,206.04,206.03,0.03]
[1756534560518,10.08803257,206.04,206.03,0.03]
[1756534562308,30.56460606,206.04,206.03,0.71]
[1756534562625,30.56460606,206.04,206.03,0.03]
[1756534562931,31.24460606,206.04,206.03,0.03]
[1756534563230,30.56460606,206.04,206.03,0.03]
[1756534563421,31.24460606,206.04,206.03,0.03]
[1756534564141,35.41803257,206.04,206.03,0.03]
[1756534564635,36.09803257,206.04,206.03,0.03]
[1756534564931,30.56460606,206.04,206.03,0.03]
[1756534565511,30.56460606,206.04,206.03,0.71]
[1756534566833,30.56460606,206.04,206.03,0.03]
[1756534567029,35.41803257,206.04,206.03,0.03]
[1756534567242,36.09803257,206.04,206.03,0.03]
[1756534567411,35.41803257,206.04,206.03,0.03]
[1756534570046,30.56460606,206.04,206.03,0.03]
[1756534571943,35.41803257,206.04,206.03,0.03]
[1756534572524,36.09803257,206.04,206.03,0.03]
[1756534572949,52.79620492,206.04,206.0,0.03]
[1756534573161,35.12921212,206.01,206.0,0.03]
[1756534573377,73.16921212,206.01,206.0,0.03]
[1756534573518,73.84921212,206.01,206.0,0.03]
[1756534573924,78.70334541,206.01,206.0,0.03]
[1756534574221,78.70334541,206.01,205.94,0.68]
[1756534574438,4.56460606,205.95,205.94,0.68]
[1756534577052,4.56460606,205.95,205.92,0.68]
[1756534577253,4.56460606,205.93,205.89,4.85696245]
[1756534577727,4.56460606,205.93,205.87,4.8574343]
[1756534577926,4.56460606,205.92,205.9,0.68]
[1756534578157,4.56460606,205.92,205.91,0.68]
[1756534579064,4.56460606,205.92,205.84,4.85814224]
[1756534579353,26.0,205.95,205.84,4.85814224]
[1756534579354,4.56460606,205.89,205.85,0.68]
[1756534580131,4.56460606,205.9,205.85,0.68]
[1756534580331,4.56460606,205.9,205.79,20.0]
[1756534580332,4.56460606,205.89,205.82,2.53345331]
[1756534580552,26.0,205.91,205.83,0.68]
[1756534580757,4.56460606,205.86,205.83,0.68]
[1756534581053,4.56460606,205.85,205.83,0.68]
[1756534581264,4.56460606,205.84,205.78,4.85954611]
[1756534581427,4.56460606,205.86,205.8,4.56460606]
[1756534581633,4.56460606,205.86,205.81,5.24460606]
[1756534581831,4.56460606,205.86,205.82,0.68]
[1756534582338,4.56460606,205.85,205.82,0.68]
[1756534582738,4.56460606,205.85,205.83,0.68]